[Event "Rapid Tournament (RAP)"]
[Site "Biel, Switzerland"]
[Date "2026.07.12"]
[Round "3.9"]
[White "Acs, Peter"]
[Black "Harish, Neeraj"]
[Result "1-0"]
[TimeControl "15 + 5"]
[WhiteTitle "-"]
[BlackTitle "-"]
[WhiteFideId "708020"]
[BlackFideId "30958130"]
[WhiteElo "2474"]
[BlackElo "2140"]

1. e4 {[%clk 00:15:07]} {[%emt 00:10:25]} e5 {[%clk 00:15:06]} {[%emt
00:00:08]} 2. Nf3 {[%clk 00:15:08]} {[%emt 00:00:01]} Nc6 {[%clk 00:15:09]}
{[%emt 00:00:03]} 3. d4 {[%clk 00:15:04]} {[%emt 00:00:11]} exd4 {[%clk
00:15:11]} 4. Bc4 {[%clk 00:15:04]} {[%emt 00:00:04]} Nf6 {[%clk 00:14:56]}
{[%emt 00:00:20]} 5. e5 {[%clk 00:15:05]} {[%emt 00:00:04]} d5 {[%clk
00:14:59]} {[%emt 00:00:03]} 6. Bb5 {[%clk 00:15:07]} {[%emt 00:00:03]} Nd7
{[%clk 00:14:45]} {[%emt 00:00:19]} 7. c3 {[%clk 00:13:59]} {[%emt 00:01:13]}
dxc3 {[%clk 00:13:28]} {[%emt 00:01:22]} 8. Nxc3 {[%clk 00:13:56]} {[%emt
00:00:08]} Nb6 {[%clk 00:13:14]} {[%emt 00:00:19]} 9. O-O {[%clk 00:13:37]}
{[%emt 00:00:23]} Be7 {[%clk 00:12:32]} {[%emt 00:00:48]} 10. a4 {[%clk
00:13:31]} {[%emt 00:00:11]} a5 {[%clk 00:12:16]} {[%emt 00:00:21]} 11. Be3
{[%clk 00:13:21]} {[%emt 00:00:14]} Be6 {[%clk 00:11:41]} {[%emt 00:00:40]} 12.
Bxb6 {[%clk 00:09:24]} {[%emt 00:04:03]} cxb6 {[%clk 00:11:43]} {[%emt
00:00:02]} 13. Nd4 {[%clk 00:09:28]} {[%emt 00:00:02]} Rc8 {[%clk 00:08:19]}
{[%emt 00:03:30]} 14. Nxe6 {[%clk 00:08:52]} {[%emt 00:00:40]} fxe6 {[%clk
00:08:15]} {[%emt 00:00:09]} 15. Qg4 {[%clk 00:08:53]} {[%emt 00:00:03]} Kf7
{[%clk 00:06:51]} {[%emt 00:01:30]} 16. Rfe1 {[%clk 00:07:38]} {[%emt
00:01:20]} Re8 {[%clk 00:04:57]} {[%emt 00:01:58]} 17. Re3 {[%clk 00:06:00]}
{[%emt 00:01:44]} Bc5 {[%clk 00:03:24]} {[%emt 00:01:38]} 18. Qh5+ {[%clk
00:05:23]} {[%emt 00:00:42]} Kg8 {[%clk 00:03:21]} {[%emt 00:00:08]} 19. Bd3
{[%clk 00:05:22]} {[%emt 00:00:06]} Bxe3 {[%clk 00:01:22]} {[%emt 00:02:04]} 20.
Bxh7+ {[%clk 00:02:37]} {[%emt 00:02:49]} Kf8 {[%clk 00:01:11]} {[%emt
00:00:17]} 21. fxe3 {[%clk 00:02:39]} {[%emt 00:00:03]} Ke7 {[%clk 00:00:57]}
{[%emt 00:00:19]} 22. Rd1 {[%clk 00:02:28]} {[%emt 00:00:16]} Nb4 {[%clk
00:00:31]} {[%emt 00:00:31]} 23. Bg6 {[%clk 00:02:04]} {[%emt 00:00:28]} Rf8
{[%clk 00:00:15]} {[%emt 00:00:22]} 24. e4 {[%clk 00:01:53]} {[%emt 00:00:16]}
d4 {[%clk 00:00:17]} {[%emt 00:00:03]} 25. Qh4+ {[%clk 00:01:25]} {[%emt
00:00:31]} Kd7 {[%clk 00:00:21]} {[%emt 00:00:03]} 26. Rxd4+ {[%clk 00:01:27]}
{[%emt 00:00:03]} Nd5 {[%clk 00:00:15]} {[%emt 00:00:11]} 27. Qxd8+ {[%clk
00:01:12]} {[%emt 00:00:20]} Rcxd8 {[%clk 00:00:17]} {[%emt 00:00:03]} 28. exd5
{[%clk 00:01:15]} {[%emt 00:00:02]} exd5 {[%clk 00:00:18]} {[%emt 00:00:04]} 29.
Rxd5+ {[%clk 00:00:49]} {[%emt 00:00:31]} Ke6 {[%clk 00:00:17]} {[%emt
00:00:05]} 30. Rb5 {[%clk 00:00:43]} {[%emt 00:00:12]} Rd2 {[%clk 00:00:12]}
{[%emt 00:00:09]} 31. Bh5 {[%clk 00:00:23]} {[%emt 00:00:25]} Rff2 {[%clk
00:00:10]} {[%emt 00:00:07]} 32. Bg4+ {[%clk 00:00:25]} {[%emt 00:00:04]} Ke7
{[%clk 00:00:12]} {[%emt 00:00:03]} 33. Bf3 {[%clk 00:00:09]} {[%emt 00:00:21]}
Rxb2 {[%clk 00:00:15]} {[%emt 00:00:02]} 34. Rxb2 {[%clk 00:00:08]} {[%emt
00:00:06]} Rxb2 {[%clk 00:00:18]} {[%emt 00:00:01]} 35. Bxb7 {[%clk 00:00:11]}
{[%emt 00:00:02]} Ke6 {[%clk 00:00:20]} {[%emt 00:00:04]} 36. Bc6 {[%clk
00:00:13]} {[%emt 00:00:03]} Kxe5 {[%clk 00:00:22]} {[%emt 00:00:03]} 37. Nb5
{[%clk 00:00:10]} {[%emt 00:00:08]} Ra2 {[%clk 00:00:20]} {[%emt 00:00:07]} 38.
Na7 {[%clk 00:00:12]} {[%emt 00:00:03]} Kd6 {[%clk 00:00:16]} {[%emt 00:00:09]}
39. Bb5 {[%clk 00:00:14]} {[%emt 00:00:04]} Kc5 {[%clk 00:00:18]} {[%emt
00:00:02]} 40. h4 {[%clk 00:00:17]} {[%emt 00:00:02]} Rd2 {[%clk 00:00:15]}
{[%emt 00:00:08]} 41. Kh2 {[%clk 00:00:18]} {[%emt 00:00:04]} Rd4 {[%clk
00:00:07]} {[%emt 00:00:13]} 42. Kh3 {[%clk 00:00:16]} {[%emt 00:00:06]} Re4
{[%clk 00:00:11]} {[%emt 00:00:01]} 43. h5 {[%clk 00:00:13]} {[%emt 00:00:09]}
Re7 {[%clk 00:00:15]} 44. Nc6 {[%clk 00:00:16]} {[%emt 00:00:02]} Re6 {[%clk
00:00:18]} {[%emt 00:00:02]} 45. g4 {[%clk 00:00:15]} {[%emt 00:00:05]} Re1
{[%clk 00:00:08]} {[%emt 00:00:15]} 46. Kh4 {[%clk 00:00:19]} {[%emt 00:00:02]}
Rh1+ {[%clk 00:00:09]} {[%emt 00:00:04]} 47. Kg5 {[%clk 00:00:22]} {[%emt
00:00:01]} Rg1 {[%clk 00:00:13]} 48. Kf5 {[%clk 00:00:26]} {[%emt 00:00:02]}
Kd6 {[%clk 00:00:16]} {[%emt 00:00:02]} 49. g5 {[%clk 00:00:27]} {[%emt
00:00:04]} Rh1 {[%clk 00:00:16]} {[%emt 00:00:05]} 50. Kg6 {[%clk 00:00:29]}
{[%emt 00:00:03]} Ke6 {[%clk 00:00:20]} {[%emt 00:00:01]} 51. Nd4+ {[%clk
00:00:30]} {[%emt 00:00:04]} Kd5 {[%clk 00:00:18]} {[%emt 00:00:07]} 52. Bc6+
{[%clk 00:00:34]} {[%emt 00:00:01]} 1-0

[Event "Rapid Tournament (RAP)"]
[Site "Biel, Switzerland"]
[Date "2026.07.12"]
[Round "3.10"]
[White "Erne, Raphael"]
[Black "Gopal, G.N."]
[Result "0-1"]
[TimeControl "15 + 5"]
[WhiteTitle "-"]
[BlackTitle "-"]
[WhiteFideId "1341928"]
[BlackFideId "5015693"]
[WhiteElo "2122"]
[BlackElo "2471"]

1. c4 {[%clk 00:15:04]} {[%emt 00:00:02]} c5 {[%clk 00:15:09]} {[%emt
00:00:02]} 2. g3 {[%clk 00:15:05]} {[%emt 00:00:04]} g6 {[%clk 00:15:09]}
{[%emt 00:00:06]} 3. Bg2 {[%clk 00:15:05]} {[%emt 00:00:04]} Bg7 {[%clk
00:15:13]} 4. Nc3 {[%clk 00:15:06]} {[%emt 00:00:04]} Nc6 {[%clk 00:15:11]}
{[%emt 00:00:07]} 5. Nf3 {[%clk 00:15:02]} {[%emt 00:00:09]} d6 {[%clk
00:15:01]} {[%emt 00:00:15]} 6. O-O {[%emt 00:00:35]} Bf5 {[%clk 00:15:03]} 7.
h3 {[%clk 00:14:10]} {[%emt 00:00:28]} Qd7 {[%clk 00:15:05]} {[%emt 00:00:04]}
8. Kh2 {[%clk 00:14:12]} {[%emt 00:00:03]} e5 {[%clk 00:14:33]} {[%emt
00:00:38]} 9. d3 {[%clk 00:13:43]} {[%emt 00:00:33]} Nge7 {[%clk 00:14:36]}
{[%emt 00:00:02]} 10. e4 {[%clk 00:13:00]} {[%emt 00:00:47]} Be6 {[%clk
00:14:38]} {[%emt 00:00:03]} 11. Nd5 {[%clk 00:12:55]} {[%emt 00:00:11]} h6
{[%clk 00:12:40]} {[%emt 00:02:04]} 12. a3 {[%clk 00:11:53]} {[%emt 00:01:06]}
f5 {[%clk 00:11:50]} {[%emt 00:00:55]} 13. b4 {[%clk 00:10:19]} {[%emt
00:01:39]} O-O {[%clk 00:09:57]} {[%emt 00:01:58]} 14. Rb1 {[%clk 00:09:45]}
{[%emt 00:00:39]} fxe4 {[%clk 00:06:07]} {[%emt 00:03:55]} 15. dxe4 {[%clk
00:09:30]} {[%emt 00:00:20]} Nd4 {[%clk 00:06:10]} {[%emt 00:00:02]} 16. Nxd4
{[%clk 00:07:55]} {[%emt 00:01:40]} cxd4 {[%clk 00:06:09]} {[%emt 00:00:06]} 17.
f4 {[%clk 00:06:21]} {[%emt 00:01:39]} Rac8 {[%clk 00:05:23]} {[%emt 00:00:52]}
18. Qe2 {[%clk 00:05:37]} {[%emt 00:00:49]} b5 {[%clk 00:04:03]} {[%emt
00:01:24]} 19. cxb5 {[%clk 00:04:52]} {[%emt 00:00:50]} Nxd5 {[%clk 00:04:02]}
{[%emt 00:00:06]} 20. exd5 {[%clk 00:04:55]} {[%emt 00:00:02]} Bf5 {[%clk
00:04:06]} {[%emt 00:00:02]} 21. Be4 {[%clk 00:02:48]} {[%emt 00:02:11]} Rfe8
{[%clk 00:03:41]} {[%emt 00:00:31]} 22. g4 {[%clk 00:00:44]} {[%emt 00:02:08]}
Bxe4 {[%clk 00:02:10]} {[%emt 00:01:36]} 23. Qxe4 {[%clk 00:00:48]} {[%emt
00:00:02]} Qxb5 {[%clk 00:02:04]} {[%emt 00:00:11]} 24. Rf2 {[%clk 00:00:52]}
exf4 {[%clk 00:01:16]} {[%emt 00:00:53]} 25. Qf3 {[%clk 00:00:12]} {[%emt
00:00:45]} Rc3 {[%clk 00:00:32]} {[%emt 00:00:49]} 26. Qd1 {[%clk 00:00:06]}
{[%emt 00:00:11]} g5 {[%clk 00:00:35]} 27. Bb2 {[%clk 00:00:08]} {[%emt
00:00:03]} Rd3 {[%clk 00:00:26]} {[%emt 00:00:14]} 28. Rd2 {[%clk 00:00:06]}
{[%emt 00:00:08]} Rxd2+ {[%clk 00:00:30]} 29. Qxd2 {[%clk 00:00:09]} {[%emt
00:00:01]} Re2+ {[%clk 00:00:34]} 0-1

[Event "Rapid Tournament (RAP)"]
[Site "Biel, Switzerland"]
[Date "2026.07.12"]
[Round "3.11"]
[White "Arjun, Kalyan"]
[Black "Menzi, Jonas"]
[Result "1-0"]
[TimeControl "15 + 5"]
[WhiteTitle "-"]
[BlackTitle "-"]
[WhiteFideId "35018701"]
[BlackFideId "1345133"]
[WhiteElo "2390"]
[BlackElo "2114"]

1. e4 {[%clk 00:15:01]} {[%emt 00:00:02]} e5 {[%clk 00:15:05]} {[%emt
00:00:08]} 2. Nf3 {[%clk 00:15:01]} {[%emt 00:00:03]} Nc6 {[%clk 00:15:05]}
{[%emt 00:00:02]} 3. Bc4 {[%clk 00:14:57]} {[%emt 00:00:09]} Nf6 {[%clk
00:15:05]} {[%emt 00:00:03]} 4. d3 {[%clk 00:14:57]} {[%emt 00:00:02]} Be7
{[%clk 00:15:05]} {[%emt 00:00:01]} 5. O-O {[%clk 00:14:57]} {[%emt 00:00:04]}
O-O {[%clk 00:15:05]} {[%emt 00:00:02]} 6. Re1 {[%clk 00:14:57]} {[%emt
00:00:02]} d6 {[%clk 00:15:05]} {[%emt 00:00:02]} 7. a4 {[%clk 00:14:57]}
{[%emt 00:00:02]} Na5 {[%clk 00:15:05]} {[%emt 00:00:02]} 8. Ba2 {[%clk
00:14:57]} {[%emt 00:00:02]} c5 {[%clk 00:15:05]} 9. c3 {[%clk 00:14:57]}
{[%emt 00:00:05]} Nc6 {[%clk 00:15:05]} {[%emt 00:00:02]} 10. Na3 {[%clk
00:14:57]} {[%emt 00:00:04]} h6 {[%clk 00:14:56]} {[%emt 00:00:15]} 11. h3
{[%clk 00:14:57]} {[%emt 00:00:03]} a6 {[%clk 00:14:56]} {[%emt 00:00:02]} 12.
Bd2 {[%clk 00:14:43]} {[%emt 00:00:18]} Rb8 {[%clk 00:14:30]} {[%emt 00:00:32]}
13. Nc4 {[%clk 00:14:38]} {[%emt 00:00:10]} Be6 {[%clk 00:12:59]} {[%emt
00:01:36]} 14. Ne3 {[%clk 00:12:55]} {[%emt 00:01:48]} Bxa2 {[%clk 00:12:37]}
{[%emt 00:00:27]} 15. Rxa2 {[%clk 00:12:55]} d5 {[%clk 00:10:40]} {[%emt
00:02:02]} 16. Nf5 {[%clk 00:12:13]} {[%emt 00:00:46]} d4 {[%clk 00:10:18]}
{[%emt 00:00:27]} 17. c4 {[%clk 00:09:50]} {[%emt 00:02:29]} Qd7 {[%clk
00:09:34]} {[%emt 00:00:48]} 18. g4 {[%clk 00:08:54]} {[%emt 00:01:01]} Nh7
{[%clk 00:07:48]} {[%emt 00:01:51]} 19. Qc1 {[%clk 00:08:35]} {[%emt 00:00:25]}
Bd8 {[%clk 00:05:17]} {[%emt 00:02:35]} 20. Kh2 {[%clk 00:08:13]} {[%emt
00:00:27]} Qe6 {[%clk 00:03:58]} {[%emt 00:01:23]} 21. Rg1 {[%clk 00:08:09]}
{[%emt 00:00:10]} Ba5 {[%clk 00:03:58]} {[%emt 00:00:03]} 22. Bxa5 {[%clk
00:06:39]} {[%emt 00:01:36]} Nxa5 {[%clk 00:03:58]} {[%emt 00:00:01]} 23. g5
{[%clk 00:06:39]} {[%emt 00:00:02]} hxg5 {[%clk 00:03:58]} {[%emt 00:00:02]} 24.
Nxg5 {[%clk 00:06:09]} {[%emt 00:00:35]} Nxg5 {[%clk 00:03:47]} {[%emt
00:00:16]} 25. Qxg5 {[%clk 00:06:00]} {[%emt 00:00:14]} g6 {[%clk 00:03:47]}
{[%emt 00:00:04]} 26. Qh6 {[%clk 00:05:21]} {[%emt 00:00:43]} Qf6 {[%clk
00:03:37]} {[%emt 00:00:16]} 27. Rg4 {[%clk 00:05:17]} {[%emt 00:00:08]} Rfd8
{[%clk 00:01:10]} {[%emt 00:02:33]} 28. Rh4 {[%clk 00:05:17]} {[%emt 00:00:02]}
Qxh4 {[%clk 00:01:10]} {[%emt 00:00:02]} 29. Qg7# {[%clk 00:05:17]} {[%emt
00:00:01]} 1-0

[Event "Rapid Tournament (RAP)"]
[Site "Biel, Switzerland"]
[Date "2026.07.12"]
[Round "3.12"]
[White "El-Mais, Ibaa"]
[Black "Gloeckler, Christian"]
[Result "0-1"]
[TimeControl "15 + 5"]
[WhiteTitle "-"]
[BlackTitle "-"]
[WhiteFideId "1312715"]
[BlackFideId "34608966"]
[WhiteElo "2100"]
[BlackElo "2332"]

1. d4 {[%clk 00:15:07]} Nf6 {[%clk 00:15:09]} {[%emt 00:00:01]} 2. c4 {[%clk
00:15:05]} {[%emt 00:00:08]} e6 {[%clk 00:15:12]} {[%emt 00:00:02]} 3. Nc3
{[%clk 00:15:07]} {[%emt 00:00:03]} Bb4 {[%clk 00:15:15]} 4. e3 {[%clk
00:15:10]} {[%emt 00:00:02]} O-O {[%clk 00:15:18]} {[%emt 00:00:02]} 5. Bd3
{[%clk 00:15:12]} {[%emt 00:00:04]} d5 {[%clk 00:15:17]} {[%emt 00:00:06]} 6.
Nf3 {[%clk 00:15:12]} {[%emt 00:00:04]} dxc4 {[%clk 00:15:18]} {[%emt
00:00:05]} 7. Bxc4 {[%clk 00:15:15]} {[%emt 00:00:01]} c5 {[%clk 00:15:22]}
{[%emt 00:00:01]} 8. O-O {[%clk 00:15:13]} {[%emt 00:00:07]} cxd4 {[%clk
00:15:23]} {[%emt 00:00:04]} 9. exd4 {[%clk 00:15:16]} {[%emt 00:00:02]} b6
{[%clk 00:15:17]} {[%emt 00:00:11]} 10. Bg5 {[%clk 00:15:14]} {[%emt 00:00:07]}
h6 {[%clk 00:15:07]} {[%emt 00:00:15]} 11. Bh4 {[%clk 00:15:00]} {[%emt
00:00:19]} Bb7 {[%clk 00:15:11]} {[%emt 00:00:01]} 12. Bb3 {[%clk 00:14:22]}
{[%emt 00:00:44]} Bxc3 {[%clk 00:14:17]} {[%emt 00:00:59]} 13. bxc3 {[%clk
00:14:24]} {[%emt 00:00:02]} Nc6 {[%clk 00:14:21]} {[%emt 00:00:01]} 14. Qd3
{[%clk 00:12:52]} {[%emt 00:01:37]} Ne7 {[%clk 00:13:04]} {[%emt 00:01:22]} 15.
Bxf6 {[%clk 00:12:42]} {[%emt 00:00:16]} gxf6 {[%clk 00:13:07]} 16. Bc2 {[%clk
00:11:04]} {[%emt 00:01:43]} f5 {[%clk 00:12:29]} {[%emt 00:00:44]} 17. Ne5
{[%clk 00:10:55]} {[%emt 00:00:14]} Nd5 {[%clk 00:11:04]} {[%emt 00:01:30]} 18.
Qd2 {[%clk 00:07:37]} {[%emt 00:03:23]} Kg7 {[%clk 00:10:19]} {[%emt 00:00:49]}
19. c4 {[%clk 00:07:15]} {[%emt 00:00:27]} Ne7 {[%clk 00:09:02]} {[%emt
00:01:22]} 20. Qe3 {[%clk 00:03:25]} {[%emt 00:03:56]} Rc8 {[%clk 00:08:32]}
{[%emt 00:00:35]} 21. Bb3 {[%clk 00:02:00]} {[%emt 00:01:30]} Ng8 {[%clk
00:04:45]} {[%emt 00:03:51]} 22. Rad1 {[%clk 00:01:37]} {[%emt 00:00:29]} Qg5
{[%clk 00:04:46]} {[%emt 00:00:02]} 23. Qh3 {[%clk 00:01:01]} {[%emt 00:00:42]}
f4 {[%clk 00:04:05]} {[%emt 00:00:47]} 24. Rfe1 {[%clk 00:00:40]} {[%emt
00:00:25]} Rfe8 {[%clk 00:03:26]} {[%emt 00:00:44]} 25. Nf3 {[%clk 00:00:17]}
{[%emt 00:00:29]} Bxf3 {[%clk 00:02:12]} {[%emt 00:01:19]} 26. Qxf3 {[%clk
00:00:20]} {[%emt 00:00:02]} Rcd8 {[%clk 00:01:59]} {[%emt 00:00:18]} 27. Re5
{[%clk 00:00:16]} {[%emt 00:00:08]} Qf6 {[%clk 00:02:04]} 28. Qe4 {[%clk
00:00:09]} {[%emt 00:00:12]} Ne7 {[%clk 00:01:55]} {[%emt 00:00:14]} 29. Bc2
{[%clk 00:00:11]} {[%emt 00:00:03]} Ng6 {[%clk 00:01:45]} {[%emt 00:00:15]} 30.
Rh5 {[%clk 00:00:15]} {[%emt 00:00:01]} Rd6 {[%clk 00:01:31]} {[%emt 00:00:19]}
31. d5 {[%clk 00:00:10]} {[%emt 00:00:10]} Red8 {[%clk 00:00:59]} {[%emt
00:00:36]} 32. g3 {[%clk 00:00:06]} {[%emt 00:00:09]} Qc3 {[%clk 00:00:53]}
{[%emt 00:00:11]} 33. Kg2 {[%clk 00:00:08]} {[%emt 00:00:03]} f3+ {[%clk
00:00:46]} {[%emt 00:00:13]} 34. Kg1 {[%clk 00:00:13]} b5 {[%clk 00:00:50]} 35.
Bb3 {[%clk 00:00:00]} {[%emt 00:00:14]} 0-1

[Event "Rapid Tournament (RAP)"]
[Site "Biel, Switzerland"]
[Date "2026.07.12"]
[Round "3.13"]
[White "Savitha, Shri B"]
[Black "Fogo Esquivel, Levi Kalani Alexander"]
[Result "1-0"]
[TimeControl "15 + 5"]
[WhiteTitle "-"]
[BlackTitle "-"]
[WhiteFideId "35061887"]
[BlackFideId "5183189"]
[WhiteElo "2317"]
[BlackElo "2088"]

1. e4 {[%clk 00:14:55]} {[%emt 00:00:15]} e5 {[%clk 00:15:07]} {[%emt
00:00:03]} 2. Nf3 {[%clk 00:14:57]} {[%emt 00:00:03]} d5 {[%clk 00:15:11]}
{[%emt 00:00:03]} 3. exd5 {[%clk 00:14:46]} {[%emt 00:00:15]} e4 {[%clk
00:15:14]} 4. Qe2 {[%clk 00:14:28]} {[%emt 00:00:23]} Nf6 {[%clk 00:15:18]}
{[%emt 00:00:01]} 5. Nc3 {[%clk 00:13:10]} {[%emt 00:01:24]} Be7 {[%clk
00:15:21]} {[%emt 00:00:01]} 6. Nxe4 {[%clk 00:13:08]} {[%emt 00:00:08]} O-O
{[%clk 00:15:00]} {[%emt 00:00:25]} 7. d3 {[%clk 00:11:07]} {[%emt 00:02:06]}
Nxd5 {[%clk 00:15:00]} {[%emt 00:00:05]} 8. c4 {[%clk 00:10:48]} {[%emt
00:00:25]} Nb4 {[%clk 00:13:38]} {[%emt 00:01:27]} 9. a3 {[%clk 00:09:53]}
{[%emt 00:01:00]} N4c6 {[%clk 00:13:29]} {[%emt 00:00:13]} 10. Be3 {[%clk
00:09:57]} {[%emt 00:00:01]} f5 {[%clk 00:13:33]} 11. Nc3 {[%clk 00:09:26]}
{[%emt 00:00:36]} f4 {[%clk 00:13:04]} {[%emt 00:00:35]} 12. Bd2 {[%clk
00:09:24]} {[%emt 00:00:06]} Bg4 {[%clk 00:12:36]} {[%emt 00:00:33]} 13. Qe4
{[%clk 00:07:46]} {[%emt 00:01:43]} Bxf3 {[%clk 00:12:18]} {[%emt 00:00:23]} 14.
gxf3 {[%clk 00:07:23]} {[%emt 00:00:28]} Nd4 {[%clk 00:11:28]} {[%emt
00:00:56]} 15. O-O-O {[%clk 00:07:21]} {[%emt 00:00:06]} Nbc6 {[%clk 00:10:07]}
{[%emt 00:01:26]} 16. Bh3 {[%clk 00:06:44]} {[%emt 00:00:43]} Bf6 {[%clk
00:04:16]} {[%emt 00:05:56]} 17. Kb1 {[%clk 00:06:30]} {[%emt 00:00:19]} Re8
{[%clk 00:02:59]} {[%emt 00:01:21]} 18. Qd5+ {[%clk 00:06:34]} Qxd5 {[%clk
00:03:01]} {[%emt 00:00:03]} 19. Nxd5 {[%clk 00:06:31]} {[%emt 00:00:08]} Be5
{[%clk 00:02:56]} {[%emt 00:00:11]} 20. Bc3 {[%clk 00:06:00]} {[%emt 00:00:36]}
Nxf3 {[%clk 00:01:37]} {[%emt 00:01:23]} 21. Bd7 {[%clk 00:05:52]} {[%emt
00:00:13]} Red8 {[%clk 00:01:20]} {[%emt 00:00:23]} 22. Bxc6 {[%clk 00:05:52]}
{[%emt 00:00:04]} bxc6 {[%clk 00:01:24]} {[%emt 00:00:01]} 23. Ne7+ {[%clk
00:05:57]} Kf8 {[%clk 00:00:46]} {[%emt 00:00:42]} 24. Nxc6 {[%clk 00:05:44]}
{[%emt 00:00:18]} Bxc3 {[%clk 00:00:48]} {[%emt 00:00:03]} 25. Nxd8 {[%clk
00:05:35]} {[%emt 00:00:15]} Rb8 {[%clk 00:00:52]} {[%emt 00:00:01]} 26. Kc2
{[%clk 00:04:59]} {[%emt 00:00:40]} Bf6 {[%clk 00:00:47]} {[%emt 00:00:10]} 27.
Ne6+ {[%clk 00:04:13]} {[%emt 00:00:51]} Kf7 {[%clk 00:00:51]} {[%emt
00:00:01]} 28. Nxc7 {[%clk 00:03:15]} {[%emt 00:01:03]} Rxb2+ {[%clk 00:00:44]}
{[%emt 00:00:12]} 29. Kc1 {[%clk 00:03:19]} {[%emt 00:00:01]} Ra2 {[%clk
00:00:33]} {[%emt 00:00:16]} 30. Nd5 {[%clk 00:02:24]} {[%emt 00:01:00]} Ra1+
{[%clk 00:00:11]} {[%emt 00:00:27]} 31. Kc2 {[%clk 00:02:18]} {[%emt 00:00:11]}
Nd4+ {[%clk 00:00:16]} 32. Kb2 {[%clk 00:02:00]} {[%emt 00:00:23]} Rxd1 {[%clk
00:00:12]} {[%emt 00:00:08]} 33. Rxd1 {[%clk 00:02:02]} {[%emt 00:00:03]} Be5
{[%clk 00:00:16]} {[%emt 00:00:01]} 34. Ka2 {[%clk 00:02:03]} {[%emt 00:00:05]}
f3 {[%clk 00:00:12]} {[%emt 00:00:09]} 35. h3 {[%clk 00:02:05]} {[%emt
00:00:02]} Ke6 {[%clk 00:00:13]} {[%emt 00:00:04]} 36. Rb1 {[%clk 00:01:56]}
{[%emt 00:00:15]} Ne2 {[%clk 00:00:11]} {[%emt 00:00:07]} 37. a4 {[%clk
00:01:46]} {[%emt 00:00:15]} Bd4 {[%clk 00:00:11]} {[%emt 00:00:04]} 38. a5
{[%clk 00:01:24]} {[%emt 00:00:28]} Ke5 {[%clk 00:00:10]} {[%emt 00:00:06]} 39.
a6 {[%clk 00:01:21]} {[%emt 00:00:08]} Bc5 {[%clk 00:00:13]} {[%emt 00:00:02]}
40. h4 {[%clk 00:00:30]} {[%emt 00:00:56]} Kd4 {[%clk 00:00:17]} 41. Rb5 {[%clk
00:00:34]} Bd6 {[%clk 00:00:13]} {[%emt 00:00:10]} 42. Rb7 {[%clk 00:00:32]}
{[%emt 00:00:06]} Bc5 {[%clk 00:00:17]} {[%emt 00:00:01]} 43. Rc7 {[%clk
00:00:26]} {[%emt 00:00:11]} Bd6 {[%clk 00:00:12]} {[%emt 00:00:09]} 44. Rxa7
{[%clk 00:00:25]} {[%emt 00:00:08]} Kxd3 {[%clk 00:00:15]} {[%emt 00:00:01]} 45.
Rc7 {[%clk 00:00:17]} {[%emt 00:00:13]} Bxc7 {[%clk 00:00:07]} {[%emt
00:00:13]} 46. a7 {[%clk 00:00:21]} Be5 {[%clk 00:00:11]} {[%emt 00:00:02]} 47.
a8=Q {[%clk 00:00:22]} {[%emt 00:00:03]} Kxc4 {[%clk 00:00:15]} {[%emt
00:00:02]} 48. Ne3+ {[%clk 00:00:24]} {[%emt 00:00:03]} Kd3 {[%clk 00:00:18]}
49. Qxf3 {[%clk 00:00:22]} {[%emt 00:00:07]} Nd4 {[%clk 00:00:23]} {[%emt
00:00:01]} 50. Qd1+ {[%clk 00:00:23]} {[%emt 00:00:03]} Ke4 {[%clk 00:00:27]}
{[%emt 00:00:01]} 51. h5 {[%clk 00:00:23]} {[%emt 00:00:06]} h6 {[%emt
00:00:08]} 52. Nc4 {[%clk 00:00:22]} Bf6 {[%clk 00:00:31]} {[%emt 00:00:02]} 53.
Nd6+ {[%clk 00:00:19]} {[%emt 00:00:08]} Kf4 {[%clk 00:00:31]} {[%emt
00:00:06]} 54. Ne8 {[%clk 00:00:22]} {[%emt 00:00:02]} Be5 {[%clk 00:00:34]}
{[%emt 00:00:01]} 55. Qd2+ {[%clk 00:00:19]} {[%emt 00:00:08]} Ke4 {[%clk
00:00:25]} {[%emt 00:00:14]} 56. Qe1+ {[%clk 00:00:23]} Kf5 {[%clk 00:00:25]}
{[%emt 00:00:05]} 57. Qg1 {[%clk 00:00:26]} {[%emt 00:00:02]} Ke4 {[%clk
00:00:14]} {[%emt 00:00:16]} 58. Nxg7 {[%clk 00:00:29]} {[%emt 00:00:02]} Kf3
{[%clk 00:00:12]} {[%emt 00:00:07]} 59. Qg6 {[%clk 00:00:24]} {[%emt 00:00:10]}
Kxf2 {[%clk 00:00:13]} {[%emt 00:00:04]} 60. Qxh6 {[%clk 00:00:27]} {[%emt
00:00:02]} Ne2 {[%clk 00:00:14]} {[%emt 00:00:04]} 61. Ne6 {[%clk 00:00:22]}
{[%emt 00:00:11]} Kf3 {[%clk 00:00:14]} {[%emt 00:00:05]} 62. Qf8+ {[%clk
00:00:24]} {[%emt 00:00:03]} Ke4 {[%clk 00:00:17]} 63. h6 {[%clk 00:00:28]} Kd5
{[%clk 00:00:19]} {[%emt 00:00:03]} 64. h7 {[%clk 00:00:23]} {[%emt 00:00:11]}
Kxe6 {[%clk 00:00:13]} {[%emt 00:00:11]} 65. h8=Q {[%clk 00:00:25]} {[%emt
00:00:03]} Bxh8 {[%clk 00:00:17]} {[%emt 00:00:01]} 66. Qxh8 {[%clk 00:00:29]}
Nf4 {[%clk 00:00:21]} {[%emt 00:00:02]} 67. Kb3 {[%clk 00:00:31]} {[%emt
00:00:02]} Kf5 {[%clk 00:00:25]} {[%emt 00:00:01]} 68. Kc4 {[%clk 00:00:34]}
{[%emt 00:00:02]} Ke4 {[%clk 00:00:29]} {[%emt 00:00:01]} 69. Qe8 {[%clk
00:00:37]} {[%emt 00:00:02]} Kf3 {[%clk 00:00:33]} {[%emt 00:00:01]} 70. Kd4
{[%clk 00:00:41]} Ne2+ {[%clk 00:00:37]} {[%emt 00:00:01]} 71. Kd3 {[%clk
00:00:42]} {[%emt 00:00:04]} Nf4+ {[%clk 00:00:40]} {[%emt 00:00:02]} 72. Kd2
{[%clk 00:00:46]} {[%emt 00:00:01]} Ng2 {[%clk 00:00:38]} {[%emt 00:00:08]} 73.
Qc6+ {[%clk 00:00:45]} {[%emt 00:00:05]} Kg3 {[%clk 00:00:40]} {[%emt
00:00:03]} 74. Qc3+ {[%clk 00:00:33]} {[%emt 00:00:17]} Kf2 {[%clk 00:00:40]}
{[%emt 00:00:05]} 75. Qh3 {[%clk 00:00:24]} {[%emt 00:00:13]} Kf1 {[%clk
00:00:22]} {[%emt 00:00:24]} 76. Qg3 {[%clk 00:00:12]} {[%emt 00:00:15]} Kg1
{[%clk 00:00:24]} {[%emt 00:00:05]} 77. Ke2 {[%clk 00:00:15]} {[%emt 00:00:02]}
Kh1 {[%clk 00:00:28]} {[%emt 00:00:01]} 78. Kf2 {[%clk 00:00:12]} {[%emt
00:00:08]} Nf4 {[%clk 00:00:31]} {[%emt 00:00:02]} 79. Qg1+ {[%clk 00:00:14]}
{[%emt 00:00:03]} 1-0